fUST/lending_fUST_20240828
["ID","MTS","AMOUNT","RATE_DAILY","PERIOD"]
[336334152,1724778658676,-187.693156,0.00012602,2]
[336334153,1724778658690,-151.327285,0.00012602,2]
[336334154,1724778658703,-151.0,0.00012602,2]
[336334155,1724778658719,-500.0,0.00012602,2]
[336334156,1724778658733,-500.0,0.00012602,2]
[336334157,1724778658747,-500.0,0.00012602,2]
[336334158,1724778658760,-500.0,0.00012602,2]
[336334159,1724778658777,-500.0,0.00012602,2]
[336334160,1724778658793,-151.0,0.00012602,2]
[336334161,1724778658807,-668.81,0.00012602,2]
[336334162,1724778658821,-233.83942,0.00012602,2]
[336334163,1724778658835,-500.0,0.00012602,2]
[336334164,1724778658848,-504.88,0.00012602,2]
[336334165,1724778658861,-500.0,0.00012602,2]
[336334166,1724778658874,-500.0,0.00012602,2]
[336334167,1724778658887,-500.0,0.00012602,2]
[336334168,1724778658901,-500.0,0.00012602,2]
[336334169,1724778658913,-786.34,0.00012602,2]
[336334171,1724778658927,-502.22,0.00012602,2]
[336334173,1724778658939,-407.35961259,0.00012602,2]
[336334175,1724778658952,-500.0,0.00012602,2]
[336334177,1724778658965,-500.0,0.00012602,2]
[336334180,1724778658981,-500.0,0.00012602,2]
[336334182,1724778658995,-500.0,0.00012602,2]
[336334184,1724778659008,-500.0,0.00012602,2]
[336334186,1724778659021,-500.0,0.00012602,2]
[336334188,1724778659035,-151.0,0.00012602,2]
[336334190,1724778659047,-500.0,0.00012602,2]
[336334192,1724778659061,-500.0,0.00012602,2]
[336334194,1724778659075,-500.0,0.00012602,2]
[336334196,1724778659087,-151.0,0.00012602,2]
[336334198,1724778659100,-655.26,0.00012602,2]
[336334199,1724778659112,-500.0,0.00012602,2]
[336334200,1724778659125,-500.0,0.00012602,2]
[336334201,1724778659138,-500.0,0.00012602,2]
[336334202,1724778659152,-500.0,0.00012602,2]
[336334203,1724778659165,-500.0,0.00012602,2]
[336334204,1724778659177,-553.19,0.00012602,2]
[336334205,1724778659189,-500.0,0.00012602,2]
[336334207,1724778659201,-500.0,0.00012602,2]
[336334208,1724778659214,-595.64,0.00012602,2]
[336334209,1724778659230,-500.0,0.00012602,2]
[336334210,1724778659242,-506.7,0.00012602,2]
[336334211,1724778659256,-500.0,0.00012602,2]
[336334212,1724778659269,-500.0,0.00012602,2]
[336334213,1724778659281,-632.42,0.00012602,2]
[336334214,1724778659295,-500.0,0.00012602,2]
[336334215,1724778659307,-702.68,0.00012602,2]
[336334216,1724778659320,-512.06,0.00012602,2]
[336334217,1724778659332,-500.0,0.00012602,2]
[336334218,1724778659344,-500.0,0.00012602,2]
[336334219,1724778659357,-500.0,0.00012602,2]
[336334220,1724778659369,-500.0,0.00012602,2]
[336334221,1724778659381,-500.0,0.00012602,2]
[336334222,1724778659395,-567.1,0.00012602,2]
[336334223,1724778659409,-500.0,0.00012602,2]
[336334224,1724778659422,-151.0,0.00012602,2]
[336334225,1724778659436,-500.0,0.00012602,2]
[336334226,1724778659448,-500.0,0.00012602,2]
[336334227,1724778659460,-500.0,0.00012602,2]
[336334228,1724778659473,-151.0,0.00012602,2]
[336334229,1724778659486,-764.19,0.00012602,2]
[336334230,1724778659499,-500.0,0.00012602,2]
[336334231,1724778659510,-500.0,0.00012602,2]
[336334232,1724778659523,-568.47,0.00012602,2]
[336334233,1724778659536,-500.0,0.00012602,2]
[336334234,1724778659551,-500.0,0.00012602,2]
[336334235,1724778659565,-500.0,0.00012602,2]
[336334236,1724778659580,-500.0,0.00012602,2]
[336334237,1724778659595,-500.0,0.00012602,2]
[336334238,1724778659607,-500.0,0.00012602,2]
[336334239,1724778659621,-500.0,0.00012602,2]
[336334240,1724778659633,-500.0,0.00012602,2]
[336334241,1724778659647,-500.0,0.00012602,2]
[336334242,1724778659663,-500.0,0.00012602,2]
[336334243,1724778659678,-500.0,0.00012602,2]
[336334244,1724778659691,-151.0,0.00012602,2]
[336334245,1724778659703,-500.0,0.00012602,2]
[336334246,1724778659718,-500.0,0.00012602,2]
[336334247,1724778659730,-500.0,0.00012602,2]
[336334248,1724778659745,-582.05,0.00012602,2]
[336334249,1724778659759,-500.0,0.00012602,2]
[336334250,1724778659774,-507.42,0.00012602,2]
[336334251,1724778659788,-500.0,0.00012602,2]
[336334252,1724778659801,-500.0,0.00012602,2]
[336334253,1724778659814,-500.0,0.00012602,2]
[336334254,1724778659843,-500.0,0.00012602,2]
[336334255,1724778659859,-500.0,0.00012602,2]
[336334256,1724778659870,-500.0,0.00012602,2]
[336334257,1724778659881,-203.75187517,0.00012602,2]
[336334258,1724778667703,-264.70567483,0.00012602,2]
[336334259,1724778667714,-500.0,0.00012602,2]
[336334260,1724778667724,-500.0,0.00012602,2]
[336334261,1724778667736,-561.83,0.00012602,2]
[336334262,1724778667747,-468.45755,0.00012602,2]
[336334263,1724778667759,-500.0,0.00012602,2]
[336334264,1724778667769,-500.0,0.00012602,2]
[336334265,1724778667779,-500.0,0.00012602,2]
[336334266,1724778667789,-1107.43,0.00012602,2]
[336334267,1724778667799,-624.0,0.00012602,2]
[336334268,1724778667808,-500.0,0.00012602,2]
[336334269,1724778667818,-500.0,0.00012602,2]
[336334270,1724778667828,-500.0,0.00012602,2]
[336334271,1724778667840,-500.0,0.00012602,2]
[336334272,1724778667850,-1017.576488,0.00012602,2]
[336334273,1724778667860,-598.29,0.00012602,2]
[336334274,1724778667870,-500.0,0.00012602,2]
[336334275,1724778667880,-1017.576488,0.00012602,2]
[336334276,1724778667890,-500.0,0.00012602,2]
[336334277,1724778667901,-2608.77,0.00012602,2]
[336334278,1724778667910,-500.0,0.00012602,2]
[336334279,1724778667920,-500.0,0.00012602,2]
[336334280,1724778667930,-312.25288648,0.00012602,2]
[336334281,1724778667941,-202.775793,0.00012602,2]
[336334282,1724778667951,-500.0,0.00012602,2]
[336334283,1724778667961,-3163.65,0.00012602,2]
[336334284,1724778667972,-2774.65,0.00012602,2]
[336334285,1724778667982,-202.775793,0.00012602,2]
[336334286,1724778667991,-500.0,0.00012602,2]
[336334287,1724778668002,-1238.61,0.00012602,2]
[336334288,1724778668014,-467.14723,0.00012602,2]
[336334289,1724778668024,-498.7532958,0.00012602,2]
[336334290,1724778668034,-523.66245493,0.00012602,2]
[336334291,1724778668044,-467.14723,0.00012602,2]
[336334292,1724778668056,-500.0,0.00012602,2]
[336334293,1724778668065,-250.003809,0.00012602,2]
[336334294,1724778668074,-573.0,0.00012602,2]
[336334295,1724778668084,-1133.85,0.00012602,2]
[336334296,1724778668093,-250.003809,0.00012602,2]
[336334297,1724778668103,-500.0,0.00012602,2]
[336334298,1724778668112,-500.0,0.00012602,2]
[336334299,1724778668121,-618.83,0.00012602,2]
[336334300,1724778668131,-500.0,0.00012602,2]
[336334301,1724778668141,-500.0,0.00012602,2]
[336334302,1724778668150,-231.668868,0.00012602,2]
[336334303,1724778668160,-500.0,0.00012602,2]
[336334304,1724778668169,-1053.06,0.00012602,2]
[336334305,1724778668179,-231.668868,0.00012602,2]
[336334306,1724778668189,-3246.57,0.00012602,2]
[336334307,1724778668198,-500.0,0.00012602,2]
[336334308,1724778668210,-500.0,0.00012602,2]
[336334309,1724778668221,-156.87390821,0.00012602,2]
[336334310,1724778668232,-151.0,0.00012602,2]
[336334311,1724778668241,-160.560616,0.00012602,2]
[336334312,1724778668251,-160.560616,0.00012602,2]
[336334313,1724778668262,-500.0,0.00012602,2]
[336334314,1724778668272,-500.0,0.00012602,2]
[336334315,1724778668282,-3271.43,0.00012602,2]
[336334316,1724778668291,-151.0,0.00012602,2]
[336334317,1724778668302,-500.0,0.00012602,2]
[336334318,1724778668313,-287.429801,0.00012602,2]
[336334319,1724778668324,-676.74,0.00012602,2]
[336334320,1724778668335,-500.0,0.00012602,2]
[336334321,1724778668345,-151.0,0.00012602,2]
[336334322,1724778668355,-500.0,0.00012602,2]
[336334323,1724778668364,-500.0,0.00012602,2]
[336334324,1724778668374,-151.0,0.00012602,2]
[336334325,1724778668385,-500.0,0.00012602,2]
[336334326,1724778668399,-500.0,0.00012602,2]
[336334327,1724778668411,-500.0,0.00012602,2]
[336334328,1724778668421,-500.0,0.00012602,2]
[336334329,1724778668432,-459.01142,0.00012602,2]
[336334330,1724778668444,-500.0,0.00012602,2]
[336334331,1724778668455,-459.01142,0.00012602,2]
[336334332,1724778668466,-1528.72,0.00012602,2]
[336334333,1724778668478,-500.0,0.00012602,2]
[336334334,1724778668488,-166.475584,0.00012602,2]
[336334335,1724778668498,-500.0,0.00012602,2]
[336334336,1724778668508,-452.172409,0.00012602,2]
[336334337,1724778668518,-166.475584,0.00012602,2]
[336334338,1724778668528,-1455.41,0.00012602,2]
[336334339,1724778668538,-452.172409,0.00012602,2]
[336334340,1724778668550,-364.6,0.00012602,2]
[336334341,1724778668560,-1553.01,0.00012602,2]
[336334342,1724778668570,-504.21,0.00012602,2]
[336334343,1724778668579,-500.0,0.00012602,2]
[336334344,1724778668589,-500.0,0.00012602,2]
[336334345,1724778668599,-500.0,0.00012602,2]
[336334346,1724778668608,-500.0,0.00012602,2]
[336334347,1724778668617,-500.0,0.00012602,2]
[336334348,1724778668627,-640.58,0.00012602,2]
[336334349,1724778668638,-500.0,0.00012602,2]
[336334350,1724778668648,-500.0,0.00012602,2]
[336334351,1724778668659,-675.45,0.00012602,2]
[336334352,1724778668670,-500.0,0.00012602,2]
[336334353,1724778668679,-500.0,0.00012602,2]
[336334354,1724778668690,-500.0,0.00012602,2]
[336334355,1724778668701,-500.0,0.00012602,2]
[336334356,1724778668711,-500.0,0.00012602,2]
[336334357,1724778668721,-582.89,0.00012602,2]
[336334358,1724778668732,-500.0,0.00012602,2]
[336334359,1724778668742,-487.660934,0.00012602,2]
[336334360,1724778668752,-487.660934,0.00012602,2]
[336334361,1724778668763,-571.89,0.00012602,2]
[336334362,1724778668774,-500.0,0.00012602,2]
[336334363,1724778668784,-500.0,0.00012602,2]
[336334364,1724778668794,-500.0,0.00012602,2]
[336334365,1724778668804,-500.0,0.00012602,2]
[336334366,1724778668815,-151.0,0.00012602,2]
[336334367,1724778668825,-500.0,0.00012602,2]
[336334368,1724778668836,-500.0,0.00012602,2]
[336334369,1724778668847,-500.0,0.00012602,2]
[336334370,1724778668858,-500.0,0.00012602,2]
[336334371,1724778668868,-500.0,0.00012602,2]
[336334372,1724778668878,-500.0,0.00012602,2]
[336334373,1724778668889,-500.0,0.00012602,2]
[336334374,1724778668899,-500.0,0.00012602,2]
[336334375,1724778668909,-500.0,0.00012602,2]
[336334376,1724778668919,-500.0,0.00012602,2]
[336334377,1724778668930,-924.852967,0.00012602,2]
[336334378,1724778668940,-773.4,0.00012602,2]
[336334379,1724778668950,-500.0,0.00012602,2]
[336334380,1724778668961,-213.462844,0.00012602,2]
[336334381,1724778668972,-500.0,0.00012602,2]
[336334382,1724778668982,-101.5705413,0.00012602,2]
[336334383,1724778669002,-823.2824257,0.00012602,2]
[336334384,1724778669012,-500.0,0.00012602,2]
[336334385,1724778669022,-500.0,0.00012602,2]
[336334386,1724778669031,-213.462844,0.00012602,2]
[336334387,1724778669042,-500.0,0.00012602,2]
[336334388,1724778669052,-296.48787021,0.00012602,2]
[336334389,1724778669061,-500.0,0.00012602,2]
[336334390,1724778669072,-500.0,0.00012602,2]
[336334391,1724778669083,-500.0,0.00012602,2]
[336334392,1724778669095,-552.32,0.00012602,2]
[336334393,1724778669105,-563.4,0.00012602,2]
[336334394,1724778669114,-500.0,0.00012602,2]
[336334395,1724778669126,-500.0,0.00012602,2]
[336334396,1724778669137,-669.12,0.00012602,2]
[336334397,1724778669147,-500.0,0.00012602,2]
[336334398,1724778669157,-500.0,0.00012602,2]
[336334399,1724778669167,-276.303727,0.00012602,2]
[336334400,1724778669176,-500.0,0.00012602,2]
[336334401,1724778669186,-500.0,0.00012602,2]
[336334402,1724778669196,-276.303727,0.00012602,2]
[336334403,1724778669205,-151.0,0.00012602,2]
[336334404,1724778669215,-500.0,0.00012602,2]
[336334405,1724778669224,-184.580136,0.00012602,2]
[336334406,1724778669233,-500.0,0.00012602,2]
[336334407,1724778669242,-569.78429906,0.00012629,2]
[336334408,1724778669251,-196.97183292,0.00012629,2]
[336334409,1724778669262,-2166.84118884,0.00012629,2]
[336334410,1724778669271,-241.97016946,0.00012689,2]
[336334411,1724778669281,-602.38400418,0.00012689,2]
[336334412,1724778669291,-414.01760843,0.00012689,2]
[336334413,1724778669300,-600.0,0.00012714,2]
[336334414,1724778669310,-600.0,0.00012714,2]
[336334415,1724778669319,-600.0,0.00012756,2]
[336334416,1724778669329,-600.0,0.00012756,2]
[336334417,1724778669338,-600.0,0.00012756,2]
[336334418,1724778669348,-600.0,0.00012756,2]
[336334419,1724778669358,-600.0,0.00012756,2]
[336334420,1724778669368,-600.0,0.00012756,2]
[336334421,1724778669379,-600.0,0.00012756,2]
[336334422,1724778669390,-600.0,0.00012756,2]
[336334423,1724778669403,-600.0,0.00012756,2]
[336334424,1724778669415,-600.0,0.00012756,2]
[336334425,1724778669426,-7984.31210554,0.00012782,2]
[336334426,1724778669436,-151.0,0.00012785,2]
[336334427,1724778669446,-187.514891,0.00012785,2]
[336334428,1724778669456,-151.0,0.00012785,2]
[336334429,1724778669465,-417.592714,0.00012785,2]
[336334430,1724778669477,-417.592714,0.00012785,2]
[336334431,1724778669488,-151.0,0.00012785,2]
[336334432,1724778669498,-415.5434711,0.00012785,2]
[336334433,1724778669510,-600.0,0.00012797,2]
[336334434,1724778669520,-600.0,0.00012797,2]
[336334435,1724778669529,-600.0,0.00012797,2]
[336334436,1724778669539,-600.0,0.00012862,2]
[336334437,1724778669552,-600.0,0.00012862,2]
[336334438,1724778669563,-600.0,0.00012862,2]
[336334439,1724778669573,-500.0,0.00012875,2]
[336334440,1724778669583,-554.65,0.00012875,2]
[336334441,1724778669593,-500.0,0.00012875,2]
[336334442,1724778669603,-1416.19,0.00012875,2]
[336334443,1724778669612,-500.0,0.00012875,2]
[336334444,1724778669623,-500.0,0.00012875,2]
[336334445,1724778669634,-1498.44,0.00012875,2]
[336334446,1724778669646,-500.0,0.00012875,2]
[336334447,1724778669656,-500.0,0.00012875,2]
[336334448,1724778669666,-500.0,0.00012875,2]
[336334449,1724778669676,-500.0,0.00012875,2]
[336334450,1724778669687,-500.0,0.00012875,2]
[336334451,1724778669697,-1373.05,0.00012875,2]
[336334452,1724778669706,-1354.84,0.00012875,2]
[336334453,1724778669715,-500.0,0.00012876,2]
[336334454,1724778669725,-500.0,0.00012876,2]
[336334455,1724778669735,-500.0,0.00012876,2]
[336334456,1724778669745,-541.93,0.00012876,2]
[336334457,1724778669756,-500.0,0.00012876,2]
[336334458,1724778669767,-500.0,0.00012876,2]
[336334459,1724778669899,-604.34,0.00012876,2]
[336334460,1724778669925,-500.0,0.00012876,2]
[336334461,1724778669935,-500.0,0.00012876,2]
[336334462,1724778669945,-500.0,0.00012876,2]
[336334463,1724778669957,-500.0,0.00012876,2]
[336334464,1724778669966,-500.0,0.00012876,2]
[336334465,1724778669976,-500.0,0.00012876,2]
[336334466,1724778669985,-500.0,0.00012876,2]
[336334467,1724778669994,-500.0,0.00012876,2]
[336334468,1724778670003,-500.0,0.00012876,2]
[336334469,1724778670013,-601.05,0.00012876,2]
[336334470,1724778670023,-648.24,0.00012876,2]
[336334471,1724778670033,-500.0,0.00012876,2]
[336334472,1724778670042,-500.0,0.00012876,2]
[336334473,1724778670052,-500.0,0.00012876,2]
[336334474,1724778670061,-500.0,0.00012876,2]
[336334475,1724778670072,-500.0,0.00012876,2]
[336334476,1724778670082,-500.0,0.00012876,2]
[336334477,1724778670092,-500.0,0.00012876,2]
[336334478,1724778670101,-500.0,0.00012876,2]
[336334479,1724778670111,-500.0,0.00012876,2]
[336334480,1724778670122,-611.08,0.00012876,2]
[336334481,1724778670132,-500.0,0.00012876,2]
[336334482,1724778670141,-500.0,0.00012876,2]
[336334483,1724778670151,-500.0,0.00012876,2]
[336334484,1724778670160,-500.0,0.00012876,2]
[336334485,1724778670169,-500.0,0.00012876,2]
[336334486,1724778670178,-528.18,0.00012876,2]
[336334487,1724778670188,-500.0,0.00012876,2]
[336334488,1724778670198,-500.0,0.00012876,2]
[336334489,1724778670208,-500.0,0.00012876,2]
[336334490,1724778670217,-500.0,0.00012876,2]
[336334491,1724778670227,-500.0,0.00012876,2]
[336334492,1724778670236,-500.0,0.00012876,2]
[336334493,1724778670246,-500.0,0.00012876,2]
[336334494,1724778670259,-151.0,0.00012876,2]
[336334495,1724778670268,-500.0,0.00012876,2]
[336334496,1724778670277,-500.0,0.00012876,2]
[336334497,1724778670288,-500.0,0.00012876,2]
[336334498,1724778670297,-500.0,0.00012876,2]
[336334499,1724778670307,-500.0,0.00012876,2]
[336334500,1724778670316,-1350.79,0.00012876,2]
[336334501,1724778670326,-578.974458,0.00012876,2]
[336334502,1724778670336,-500.0,0.00012876,2]
[336334503,1724778670345,-578.974458,0.00012876,2]
[336334504,1724778670354,-500.0,0.00012876,2]
[336334505,1724778670364,-500.0,0.00012876,2]
[336334506,1724778670373,-655.36,0.00012876,2]
[336334507,1724778670382,-500.0,0.00012876,2]
[336334508,1724778670392,-500.0,0.00012876,2]
[336334509,1724778670405,-500.0,0.00012876,2]
[336334510,1724778670415,-500.0,0.00012876,2]
[336334511,1724778670424,-644.39,0.00012876,2]
[336334512,1724778670434,-500.0,0.00012876,2]
[336334513,1724778670443,-500.0,0.00012876,2]
[336334514,1724778670452,-584.14,0.00012876,2]
[336334515,1724778670462,-500.0,0.00012876,2]
[336334516,1724778670472,-581.73,0.00012876,2]
[336334517,1724778670483,-575.58917423,0.00012876,2]
[336334518,1724778670492,-500.0,0.00012876,2]
[336334519,1724778670501,-155.7983193,0.00012876,2]
[336334520,1724778670512,-500.0,0.00012876,2]
[336334521,1724778670521,-517.38,0.00012876,2]
[336334522,1724778670530,-500.0,0.00012876,2]
[336334523,1724778670539,-500.0,0.00012876,2]
[336334524,1724778670549,-500.0,0.00012876,2]
[336334525,1724778670558,-187.693156,0.00012876,2]
[336334526,1724778670567,-500.0,0.00012876,2]
[336334527,1724778670577,-500.0,0.00012876,2]
[336334528,1724778670586,-500.0,0.00012876,2]
[336334529,1724778670596,-187.693156,0.00012876,2]
[336334530,1724778670605,-500.0,0.00012876,2]
[336334531,1724778670614,-500.0,0.00012876,2]
[336334532,1724778670624,-500.0,0.00012876,2]
[336334533,1724778670633,-500.0,0.00012876,2]
[336334534,1724778670643,-151.0,0.00012876,2]
[336334535,1724778670653,-668.81,0.00012876,2]
[336334536,1724778670662,-500.0,0.00012876,2]
[336334537,1724778670671,-504.88,0.00012876,2]
[336334538,1724778670681,-500.0,0.00012876,2]
[336334539,1724778670690,-500.0,0.00012876,2]
[336334540,1724778670699,-500.0,0.00012876,2]
[336334541,1724778670711,-501.92765703,0.00012876,2]
[336334542,1724778670723,-786.34,0.00012876,2]
[336334543,1724778670732,-502.22,0.00012876,2]
[336334544,1724778670743,-500.0,0.00012876,2]
[336334545,1724778670753,-500.0,0.00012876,2]
[336334546,1724778670774,-500.0,0.00012876,2]
[336334547,1724778670784,-315.48079459,0.00012876,2]
[336334548,1724778670794,-500.0,0.00012876,2]
[336334549,1724778670804,-500.0,0.00012876,2]
[336334550,1724778670814,-151.0,0.00012876,2]
[336334551,1724778670824,-500.0,0.00012876,2]
[336334552,1724778670836,-500.0,0.00012876,2]
[336334553,1724778670847,-151.0,0.00012876,2]
[336334554,1724778670859,-655.26,0.00012876,2]
[336334555,1724778670869,-500.0,0.00012876,2]
[336334556,1724778670880,-500.0,0.00012876,2]
[336334557,1724778670892,-500.0,0.00012876,2]
[336334558,1724778670903,-502.70080558,0.00012876,2]
[336334559,1724778670915,-500.0,0.00012876,2]
[336334560,1724778670925,-553.19,0.00012876,2]
[336334561,1724778670934,-500.0,0.00012876,2]
[336334562,1724778670945,-500.0,0.00012876,2]
[336334563,1724778670955,-595.64,0.00012876,2]
[336334564,1724778670965,-500.0,0.00012876,2]
[336334565,1724778670974,-506.7,0.00012876,2]
[336334566,1724778670983,-500.0,0.00012876,2]
[336334567,1724778670993,-500.0,0.00012876,2]
[336334568,1724778671003,-632.42,0.00012876,2]
[336334569,1724778671021,-500.0,0.00012876,2]
[336334570,1724778671034,-702.68,0.00012876,2]
[336334571,1724778671044,-512.06,0.00012876,2]
[336334572,1724778671055,-500.0,0.00012876,2]
[336334573,1724778671064,-500.0,0.00012876,2]
[336334574,1724778671073,-500.0,0.00012876,2]
[336334575,1724778671082,-500.0,0.00012876,2]
[336334576,1724778671091,-500.0,0.00012876,2]
[336334577,1724778671100,-567.1,0.00012876,2]
[336334578,1724778671110,-500.0,0.00012876,2]
[336334579,1724778671120,-151.0,0.00012876,2]
[336334580,1724778671129,-500.0,0.00012876,2]
[336334581,1724778671138,-500.0,0.00012876,2]
[336334582,1724778671148,-500.0,0.00012876,2]
[336334583,1724778671158,-151.0,0.00012876,2]
[336334584,1724778671169,-764.19,0.00012876,2]
[336334585,1724778671180,-500.0,0.00012876,2]
[336334586,1724778671191,-502.4613839,0.00012876,2]
[336334587,1724778671201,-500.0,0.00012876,2]
[336334588,1724778671211,-500.0,0.00012876,2]
[336334589,1724778671221,-500.0,0.00012876,2]
[336334590,1724778671230,-500.0,0.00012876,2]
[336334591,1724778671241,-500.0,0.00012876,2]
[336334592,1724778671253,-500.0,0.00012876,2]
[336334593,1724778671270,-282.45084332,0.00012876,2]
[336334594,1724778671282,-185.41766373,0.00012876,2]
[336334595,1724778671293,-500.0,0.00012876,2]
[336334596,1724778671303,-500.0,0.00012876,2]
[336334597,1724778671314,-500.0,0.00012876,2]
[336334598,1724778671324,-500.0,0.00012876,2]
[336334599,1724778671334,-500.0,0.00012876,2]
[336334600,1724778671344,-500.0,0.00012876,2]
[336334601,1724778671355,-582.05,0.00012876,2]
[336334602,1724778671366,-500.0,0.00012876,2]
[336334603,1724778671376,-507.42,0.00012876,2]
[336334604,1724778671387,-500.0,0.00012876,2]
[336334605,1724778671400,-500.0,0.00012876,2]
[336334606,1724778671410,-500.0,0.00012876,2]
[336334607,1724778671420,-192.15320173,0.00012876,2]
[336334608,1724778671431,-500.0,0.00012876,2]
[336334609,1724778671442,-500.0,0.00012876,2]
[336334610,1724778671453,-500.0,0.00012876,2]
[336334611,1724778671462,-289.78319095,0.00012876,2]
[336334612,1724778671472,-561.83,0.00012876,2]
[336334613,1724778671484,-500.0,0.00012876,2]
[336334614,1724778671496,-500.0,0.00012876,2]
[336334615,1724778671507,-1107.43,0.00012876,2]
[336334616,1724778671517,-624.0,0.00012876,2]
[336334617,1724778671527,-500.0,0.00012876,2]
[336334618,1724778671537,-500.0,0.00012876,2]
[336334619,1724778671547,-305.96956731,0.00012876,2]
[336334620,1724778671558,-500.0,0.00012876,2]
[336334621,1724778671569,-598.29,0.00012876,2]
[336334622,1724778671580,-500.0,0.00012876,2]
[336334623,1724778671590,-2608.77,0.00012876,2]
[336334624,1724778671599,-500.0,0.00012876,2]
[336334625,1724778671610,-500.0,0.00012876,2]
[336334626,1724778671620,-500.0,0.00012876,2]
[336334627,1724778671632,-2774.65,0.00012876,2]
[336334628,1724778671642,-3163.65,0.00012876,2]
[336334629,1724778671654,-500.0,0.00012876,2]
[336334630,1724778671664,-1238.61,0.00012876,2]
[336334631,1724778671674,-500.0,0.00012876,2]
[336334632,1724778671683,-573.0,0.00012876,2]
[336334633,1724778671693,-1133.85,0.00012876,2]
[336334634,1724778671704,-500.0,0.00012876,2]
[336334635,1724778671715,-557.67,0.00012876,2]
[336334636,1724778671725,-618.83,0.00012876,2]
[336334637,1724778671735,-500.0,0.00012876,2]
[336334638,1724778671745,-500.0,0.00012876,2]
[336334639,1724778671757,-231.668868,0.00012876,2]
[336334640,1724778671768,-1053.06,0.00012876,2]
[336334641,1724778671779,-231.668868,0.00012876,2]
[336334642,1724778671788,-3246.57,0.00012876,2]
[336334643,1724778671798,-500.0,0.00012876,2]
[336334644,1724778671808,-500.0,0.00012876,2]
[336334645,1724778671820,-151.0,0.00012876,2]
[336334646,1724778671831,-160.560616,0.00012876,2]
[336334647,1724778671842,-160.560616,0.00012876,2]
[336334648,1724778671855,-500.0,0.00012876,2]
[336334649,1724778671865,-500.0,0.00012876,2]
[336334650,1724778671874,-3271.43,0.00012876,2]
[336334651,1724778671884,-500.0,0.00012876,2]
[336334652,1724778671895,-676.74,0.00012876,2]
[336334653,1724778671905,-409.20503905,0.00012876,2]
[336334654,1724778671915,-151.0,0.00012876,2]
[336334655,1724778671925,-500.0,0.00012876,2]
[336334656,1724778671934,-500.0,0.00012876,2]
[336334657,1724778671943,-217.047414,0.00012876,2]
[336334658,1724778671953,-500.0,0.00012876,2]
[336334659,1724778671963,-500.0,0.00012876,2]
[336334660,1724778671973,-500.0,0.00012876,2]
[336334661,1724778671983,-500.0,0.00012876,2]
[336334662,1724778671993,-459.01142,0.00012876,2]
[336334663,1724778672002,-466.07702903,0.00012876,2]
[336334664,1724778672019,-459.01142,0.00012876,2]
[336334665,1724778672029,-1528.72,0.00012876,2]
[336334666,1724778672039,-500.0,0.00012876,2]
[336334667,1724778672049,-166.475584,0.00012876,2]